[Event "Titled Tuesday Blitz July 4 Early 2023"]
[White "realmadridfc123"]
[Black "Vivas Zamora, Fabian Ernesto"]
[BlackFideId "3902480"]
[WhiteElo "2766"]
[BlackElo "2413"]
[Result "0-1"]
[Round "2"]
[TimeControl "180+2"]
[Date "2023.07.04"]
[WhiteClock "0:01:04"]
[BlackClock "0:00:10"]
[Board "136"]

1. c4 {[%clk 0:03:00]}  Nf6 {[%clk 0:02:58]} 2. Nc3 {[%clk 0:03:01]}  c5 {[%clk 0:02:57]} 3. Nf3 {[%clk 0:03:01]}  d5 {[%clk 0:02:54]} 4. cxd5 {[%clk 0:03:01]}  Nxd5 {[%clk 0:02:54]} 5. g3 {[%clk 0:03:01]}  Nc6 {[%clk 0:02:50]} 6. Bg2 {[%clk 0:03:02]}  Nc7 {[%clk 0:02:51]} 7. O-O {[%clk 0:03:00]}  e5 {[%clk 0:02:50]} 8. d3 {[%clk 0:03:01]}  Be7 {[%clk 0:02:49]} 9. Be3 {[%clk 0:03:01]}  Bd7 {[%clk 0:02:48]} 10. Rc1 {[%clk 0:02:56]}  Rc8 {[%clk 0:02:47]} 11. a3 {[%clk 0:02:52]}  O-O {[%clk 0:02:46]} 12. Na2 {[%clk 0:02:40]}  b6 {[%clk 0:02:39]} 13. b4 {[%clk 0:02:39]}  cxb4 {[%clk 0:02:32]} 14. Nxb4 {[%clk 0:02:36]}  Nxb4 {[%clk 0:02:21]} 15. axb4 {[%clk 0:02:37]}  f6 {[%clk 0:02:19]} 16. Qb3+ {[%clk 0:02:37]}  Be6 {[%clk 0:02:15]} 17. Qa4 {[%clk 0:02:38]}  Nd5 {[%clk 0:02:10]} 18. Bd2 {[%clk 0:02:38]}  Qd6 {[%clk 0:01:39]} 19. b5 {[%clk 0:02:29]}  Qd7 {[%clk 0:01:33]} 20. Ra1 {[%clk 0:02:19]}  Rc7 {[%clk 0:01:24]} 21. e4 {[%clk 0:02:19]}  Nc3 {[%clk 0:01:22]} 22. Bxc3 {[%clk 0:02:18]}  Rxc3 {[%clk 0:01:23]} 23. d4 {[%clk 0:02:16]}  exd4 {[%clk 0:01:13]} 24. Nxd4 {[%clk 0:02:16]}  Rc4 {[%clk 0:01:08]} 25. Qxa7 {[%clk 0:02:10]}  Rxd4 {[%clk 0:01:07]} 26. Qxb6 {[%clk 0:02:11]}  Qd6 {[%clk 0:00:54]} 27. Qa7 {[%clk 0:02:04]}  Bc4 {[%clk 0:00:49]} 28. Rfb1 {[%clk 0:02:00]}  Bd3 {[%clk 0:00:43]} 29. Rd1 {[%clk 0:01:41]}  Qc5 {[%clk 0:00:39]} 30. Qa2+ {[%clk 0:01:26]}  Kh8 {[%clk 0:00:36]} 31. Qb2 {[%clk 0:01:23]}  Rb8 {[%clk 0:00:23]} 32. Rac1 {[%clk 0:01:21]}  Rc4 {[%clk 0:00:20]} 33. Ra1 {[%clk 0:01:19]}  Bxe4 {[%clk 0:00:14]} 34. Bf1 {[%clk 0:01:19]}  Rc2 {[%clk 0:00:12]} 35. Qd4 {[%clk 0:01:18]}  Qxd4 {[%clk 0:00:11]} 36. Rxd4 {[%clk 0:01:19]}  Bf3 {[%clk 0:00:11]} 37. Rf4 {[%clk 0:01:16]}  Bd5 {[%clk 0:00:09]} 38. Rd1 {[%clk 0:01:15]}  Bb7 {[%clk 0:00:08]} 39. Rd7 {[%clk 0:01:15]}  Bc5 {[%clk 0:00:08]} 40. Rc7 {[%clk 0:01:08]}  Bxf2+ {[%clk 0:00:07]} 41. Rxf2 {[%clk 0:01:08]}  Rxc7 {[%clk 0:00:08]} 42. Rd2 {[%clk 0:01:09]}  Be4 {[%clk 0:00:07]} 43. Rd4 {[%clk 0:01:09]}  f5 {[%clk 0:00:08]} 44. Rd6 {[%clk 0:01:07]}  h6 {[%clk 0:00:08]} 45. Rd2 {[%clk 0:01:07]}  Rcb7 {[%clk 0:00:08]} 46. Rb2 {[%clk 0:01:07]}  Kh7 {[%clk 0:00:08]} 47. Kf2 {[%clk 0:01:07]}  Rb6 {[%clk 0:00:07]} 48. Rb4 {[%clk 0:01:08]}  Rc8 {[%clk 0:00:07]} 49. g4 {[%clk 0:01:08]}  Rc2+ {[%clk 0:00:08]} 50. Kg3 {[%clk 0:01:08]}  Rc3+ {[%clk 0:00:08]} 51. Kf4 {[%clk 0:01:06]}  Rf3+ {[%clk 0:00:08]} 52. Ke5 {[%clk 0:01:06]}  Rxf1 {[%clk 0:00:09]} 53. Rb3 {[%clk 0:01:06]}  Bc2 {[%clk 0:00:08]} 54. Rb2 {[%clk 0:01:06]}  Bd3 {[%clk 0:00:08]} 55. Kd4 {[%clk 0:01:06]}  Rxb5 {[%clk 0:00:08]} 56. Rd2 {[%clk 0:01:06]}  Be4 {[%clk 0:00:09]} 57. gxf5 {[%clk 0:01:06]}  Bxf5 {[%clk 0:00:10]} 58. Kc4 {[%clk 0:01:06]}  Re5 {[%clk 0:00:09]} 59. Kd4 {[%clk 0:01:04]}  Re4+ {[%clk 0:00:10]} 0-1


[Site "https://www.chess.com"]

[Event "Titled Tuesday Blitz July 4 Early 2023"]
[White "Novikova, Galina"]
[Black "Andrej2004"]
[WhiteFideId "4157095"]
[WhiteElo "2398"]
[BlackElo "2668"]
[Result "0-1"]
[Round "2"]
[TimeControl "180+2"]
[Date "2023.07.04"]
[WhiteClock "0:00:24"]
[BlackClock "0:01:47"]
[Board "142"]

1. e4 {[%clk 0:03:00]}  b6 {[%clk 0:02:56]} 2. d4 {[%clk 0:03:00]}  Bb7 {[%clk 0:02:57]} 3. Bg5 {[%clk 0:02:58]}  g6 {[%clk 0:02:55]} 4. Nc3 {[%clk 0:02:56]}  h6 {[%clk 0:02:55]} 5. Be3 {[%clk 0:02:53]}  Bg7 {[%clk 0:02:54]} 6. f3 {[%clk 0:02:52]}  d6 {[%clk 0:02:54]} 7. Qd2 {[%clk 0:02:52]}  e5 {[%clk 0:02:54]} 8. O-O-O {[%clk 0:02:52]}  Nd7 {[%clk 0:02:54]} 9. g4 {[%clk 0:02:46]}  Ngf6 {[%clk 0:02:53]} 10. h4 {[%clk 0:02:45]}  a6 {[%clk 0:02:51]} 11. Nh3 {[%clk 0:02:28]}  exd4 {[%clk 0:02:44]} 12. Bxd4 {[%clk 0:02:28]}  Qe7 {[%clk 0:02:45]} 13. g5 {[%clk 0:02:22]}  hxg5 {[%clk 0:02:45]} 14. hxg5 {[%clk 0:02:23]}  Nh5 {[%clk 0:02:45]} 15. Bxg7 {[%clk 0:02:16]}  Nxg7 {[%clk 0:02:46]} 16. Bc4 {[%clk 0:02:08]}  O-O-O {[%clk 0:02:41]} 17. Nd5 {[%clk 0:01:58]}  Qe5 {[%clk 0:02:34]} 18. f4 {[%clk 0:01:33]}  Qxe4 {[%clk 0:02:28]} 19. b3 {[%clk 0:01:24]}  Nf5 {[%clk 0:02:28]} 20. Rhe1 {[%clk 0:01:21]}  Qf3 {[%clk 0:02:22]} 21. Ng1 {[%clk 0:01:20]}  Qg3 {[%clk 0:02:14]} 22. Ne2 {[%clk 0:01:04]}  Qf2 {[%clk 0:02:13]} 23. Rf1 {[%clk 0:01:01]}  Qc5 {[%clk 0:02:10]} 24. Rf3 {[%clk 0:00:54]}  b5 {[%clk 0:02:07]} 25. Nxc7 {[%clk 0:00:42]}  bxc4 {[%clk 0:01:50]} 26. Rc3 {[%clk 0:00:33]}  Qxc7 {[%clk 0:01:49]} 27. Rxc4 {[%clk 0:00:33]}  Nc5 {[%clk 0:01:50]} 28. b4 {[%clk 0:00:31]}  Kb8 {[%clk 0:01:48]} 29. bxc5 {[%clk 0:00:30]}  dxc5 {[%clk 0:01:49]} 30. Qc3 {[%clk 0:00:28]}  Rxd1+ {[%clk 0:01:47]} 31. Kxd1 {[%clk 0:00:29]}  Rh1+ {[%clk 0:01:47]} 32. Kd2 {[%clk 0:00:24]}  Qd6+ {[%clk 0:01:47]} 0-1


[Site "https://www.chess.com"]

[Event "Titled Tuesday Blitz July 4 Early 2023"]
[White "Saito, Vinicius"]
[Black "Matamoros Franco, Carlos S."]
[WhiteFideId "2113384"]
[BlackFideId "3600017"]
[WhiteElo "2397"]
[BlackElo "2661"]
[Result "1/2-1/2"]
[Round "2"]
[TimeControl "180+2"]
[Date "2023.07.04"]
[WhiteClock "0:00:36"]
[BlackClock "0:00:17"]
[Board "144"]

1. e4 {[%clk 0:03:00]}  e6 {[%clk 0:02:58]} 2. d4 {[%clk 0:03:00]}  d5 {[%clk 0:02:58]} 3. Nc3 {[%clk 0:03:01]}  Nf6 {[%clk 0:02:58]} 4. e5 {[%clk 0:02:58]}  Nfd7 {[%clk 0:02:58]} 5. Nce2 {[%clk 0:02:58]}  c5 {[%clk 0:02:58]} 6. c3 {[%clk 0:02:59]}  Nc6 {[%clk 0:02:58]} 7. Nf3 {[%clk 0:02:59]}  b5 {[%clk 0:02:53]} 8. h4 {[%clk 0:02:58]}  a5 {[%clk 0:02:51]} 9. Nf4 {[%clk 0:02:58]}  Ba6 {[%clk 0:02:48]} 10. a3 {[%clk 0:02:51]}  h6 {[%clk 0:02:48]} 11. Bd3 {[%clk 0:02:50]}  Qb6 {[%clk 0:02:42]} 12. Be3 {[%clk 0:02:44]}  cxd4 {[%clk 0:02:41]} 13. cxd4 {[%clk 0:02:43]}  b4 {[%clk 0:02:41]} 14. O-O {[%clk 0:02:42]}  Bxd3 {[%clk 0:02:40]} 15. Qxd3 {[%clk 0:02:42]}  Qa6 {[%clk 0:02:40]} 16. Rfc1 {[%clk 0:02:13]}  Qxd3 {[%clk 0:02:31]} 17. Nxd3 {[%clk 0:02:13]}  Rc8 {[%clk 0:02:13]} 18. axb4 {[%clk 0:02:12]}  Bxb4 {[%clk 0:02:06]} 19. Nxb4 {[%clk 0:02:03]}  axb4 {[%clk 0:02:07]} 20. Ra6 {[%clk 0:02:02]}  Ndb8 {[%clk 0:02:06]} 21. Raa1 {[%clk 0:01:50]}  O-O {[%clk 0:02:06]} 22. Nd2 {[%clk 0:01:44]}  Ne7 {[%clk 0:02:00]} 23. Nb3 {[%clk 0:01:43]}  Nf5 {[%clk 0:01:59]} 24. g3 {[%clk 0:01:42]}  Rc4 {[%clk 0:01:55]} 25. Nd2 {[%clk 0:01:36]}  Rcc8 {[%clk 0:01:34]} 26. Nb3 {[%clk 0:01:34]}  h5 {[%clk 0:01:25]} 27. Kg2 {[%clk 0:01:31]}  Kh7 {[%clk 0:01:25]} 28. Ra7 {[%clk 0:01:23]}  Kg6 {[%clk 0:01:16]} 29. Rc5 {[%clk 0:01:23]}  Rxc5 {[%clk 0:01:01]} 30. Nxc5 {[%clk 0:01:21]}  Nc6 {[%clk 0:00:59]} 31. Rb7 {[%clk 0:01:21]}  Ncxd4 {[%clk 0:00:58]} 32. Bxd4 {[%clk 0:01:19]}  Nxd4 {[%clk 0:00:59]} 33. Rxb4 {[%clk 0:00:56]}  Nc6 {[%clk 0:00:58]} 34. Nd7 {[%clk 0:00:56]}  Nxb4 {[%clk 0:00:50]} 35. Nxf8+ {[%clk 0:00:56]}  Kf5 {[%clk 0:00:51]} 36. f4 {[%clk 0:00:56]}  Ke4 {[%clk 0:00:49]} 37. Kf2 {[%clk 0:00:53]}  Nd3+ {[%clk 0:00:48]} 38. Ke2 {[%clk 0:00:54]}  Nxb2 {[%clk 0:00:49]} 39. Nd7 {[%clk 0:00:46]}  d4 {[%clk 0:00:40]} 40. Nc5+ {[%clk 0:00:46]}  Kf5 {[%clk 0:00:38]} 41. Nb7 {[%clk 0:00:41]}  d3+ {[%clk 0:00:36]} 42. Ke3 {[%clk 0:00:38]}  Kg4 {[%clk 0:00:35]} 43. Nd6 {[%clk 0:00:37]}  Kxg3 {[%clk 0:00:31]} 44. Nxf7 {[%clk 0:00:37]}  Kxh4 {[%clk 0:00:32]} 45. Ng5 {[%clk 0:00:38]}  Kg4 {[%clk 0:00:25]} 46. Nxe6 {[%clk 0:00:38]}  d2 {[%clk 0:00:23]} 47. Kxd2 {[%clk 0:00:37]}  Kf5 {[%clk 0:00:16]} 48. Nxg7+ {[%clk 0:00:36]}  Kxf4 {[%clk 0:00:17]} 49. Nxh5+ {[%clk 0:00:36]}  Kxe5 {[%clk 0:00:17]} 1/2-1/2


[Site "https://www.chess.com"]

[Event "Titled Tuesday Blitz July 4 Early 2023"]
[White "FromTexas54"]
[Black "Zhu, Jiner"]
[BlackFideId "8608059"]
[WhiteElo "2394"]
[BlackElo "2658"]
[Result "0-1"]
[Round "2"]
[TimeControl "180+2"]
[Date "2023.07.04"]
[WhiteClock "0:00:52"]
[BlackClock "0:01:13"]
[Board "145"]

1. d4 {[%clk 0:02:49]}  g6 {[%clk 0:03:00]} 2. e4 {[%clk 0:02:48]}  Bg7 {[%clk 0:03:01]} 3. Nf3 {[%clk 0:02:45]}  d6 {[%clk 0:03:01]} 4. c4 {[%clk 0:02:45]}  Nf6 {[%clk 0:03:00]} 5. Nc3 {[%clk 0:02:46]}  O-O {[%clk 0:03:00]} 6. Be2 {[%clk 0:02:47]}  e5 {[%clk 0:02:59]} 7. O-O {[%clk 0:02:48]}  Nc6 {[%clk 0:02:59]} 8. d5 {[%clk 0:02:48]}  Ne7 {[%clk 0:02:59]} 9. b4 {[%clk 0:02:49]}  a5 {[%clk 0:02:59]} 10. Ba3 {[%clk 0:02:48]}  axb4 {[%clk 0:02:57]} 11. Bxb4 {[%clk 0:02:49]}  b6 {[%clk 0:02:56]} 12. a4 {[%clk 0:02:49]}  Ne8 {[%clk 0:02:52]} 13. Nd2 {[%clk 0:02:35]}  f5 {[%clk 0:02:51]} 14. Nb5 {[%clk 0:02:26]}  h5 {[%clk 0:02:27]} 15. exf5 {[%clk 0:02:06]}  Nxf5 {[%clk 0:02:25]} 16. Ra3 {[%clk 0:02:06]}  Nf6 {[%clk 0:02:11]} 17. a5 {[%clk 0:02:04]}  bxa5 {[%clk 0:01:42]} 18. Bxa5 {[%clk 0:02:05]}  Rxa5 {[%clk 0:01:33]} 19. Rxa5 {[%clk 0:02:01]}  c6 {[%clk 0:01:33]} 20. Ra7 {[%clk 0:01:23]}  cxb5 {[%clk 0:01:33]} 21. cxb5 {[%clk 0:01:24]}  Nd4 {[%clk 0:01:33]} 22. Bd3 {[%clk 0:01:17]}  Nxd5 {[%clk 0:01:15]} 23. Bxg6 {[%clk 0:01:06]}  Nf4 {[%clk 0:01:14]} 24. Bxh5 {[%clk 0:00:58]}  Qg5 {[%clk 0:01:14]} 25. Ne4 {[%clk 0:00:52]}  Qxg2# {[%clk 0:01:13]} 0-1


[Site "https://www.chess.com"]

[Event "Titled Tuesday Blitz July 4 Early 2023"]
[White "Le Ruyet, Leopold"]
[Black "Buscar, Michael"]
[WhiteFideId "645923"]
[BlackFideId "2603616"]
[WhiteElo "2640"]
[BlackElo "2385"]
[Result "0-1"]
[Round "2"]
[TimeControl "180+2"]
[Date "2023.07.04"]
[WhiteClock "0:00:50"]
[BlackClock "0:00:36"]
[Board "147"]

1. e4 {[%clk 0:03:00]}  c5 {[%clk 0:02:59]} 2. Nf3 {[%clk 0:03:01]}  Nc6 {[%clk 0:02:59]} 3. d4 {[%clk 0:03:01]}  cxd4 {[%clk 0:03:00]} 4. Nxd4 {[%clk 0:03:02]}  Nf6 {[%clk 0:03:00]} 5. Nc3 {[%clk 0:03:02]}  e5 {[%clk 0:03:00]} 6. Ndb5 {[%clk 0:03:03]}  h6 {[%clk 0:03:01]} 7. Nd5 {[%clk 0:03:01]}  Nxd5 {[%clk 0:03:00]} 8. exd5 {[%clk 0:03:02]}  a6 {[%clk 0:03:01]} 9. dxc6 {[%clk 0:02:58]}  axb5 {[%clk 0:03:02]} 10. cxd7+ {[%clk 0:02:57]}  Bxd7 {[%clk 0:03:02]} 11. Be2 {[%clk 0:02:52]}  Bc6 {[%clk 0:02:58]} 12. O-O {[%clk 0:02:52]}  Qc7 {[%clk 0:02:53]} 13. c3 {[%clk 0:02:47]}  Be7 {[%clk 0:02:43]} 14. Qb3 {[%clk 0:02:47]}  Qb6 {[%clk 0:02:22]} 15. Be3 {[%clk 0:02:46]}  Bc5 {[%clk 0:02:22]} 16. Bxc5 {[%clk 0:02:46]}  Qxc5 {[%clk 0:02:23]} 17. a3 {[%clk 0:02:45]}  O-O {[%clk 0:02:17]} 18. Rad1 {[%clk 0:02:43]}  Ra4 {[%clk 0:02:16]} 19. Rd2 {[%clk 0:02:28]}  Rf4 {[%clk 0:02:14]} 20. Bd1 {[%clk 0:02:16]}  Rf5 {[%clk 0:02:06]} 21. Kh1 {[%clk 0:02:11]}  Rg5 {[%clk 0:02:02]} 22. f3 {[%clk 0:02:11]}  e4 {[%clk 0:02:01]} 23. fxe4 {[%clk 0:02:08]}  Bxe4 {[%clk 0:01:58]} 24. Bf3 {[%clk 0:02:06]}  Qe3 {[%clk 0:01:52]} 25. Rdf2 {[%clk 0:01:56]}  Bd3 {[%clk 0:01:45]} 26. Qd1 {[%clk 0:01:49]}  Bxf1 {[%clk 0:01:40]} 27. Rxf1 {[%clk 0:01:49]}  Re5 {[%clk 0:01:29]} 28. Qb3 {[%clk 0:01:45]}  Qf2 {[%clk 0:01:20]} 29. Qd1 {[%clk 0:01:40]}  Qxb2 {[%clk 0:01:18]} 30. Bxb7 {[%clk 0:01:31]}  Qxc3 {[%clk 0:01:12]} 31. h3 {[%clk 0:01:17]}  Qxa3 {[%clk 0:01:10]} 32. Qd4 {[%clk 0:01:18]}  Qe7 {[%clk 0:01:03]} 33. Bd5 {[%clk 0:01:13]}  Re1 {[%clk 0:00:57]} 34. Rxe1 {[%clk 0:01:11]}  Qxe1+ {[%clk 0:00:56]} 35. Kh2 {[%clk 0:01:12]}  b4 {[%clk 0:00:55]} 36. Ba2 {[%clk 0:01:01]}  Qc3 {[%clk 0:00:49]} 37. Qd5 {[%clk 0:01:00]}  Qc7+ {[%clk 0:00:46]} 38. Kh1 {[%clk 0:00:58]}  Rd8 {[%clk 0:00:45]} 39. Qb3 {[%clk 0:00:57]}  Qc1+ {[%clk 0:00:38]} 40. Kh2 {[%clk 0:00:57]}  Qf4+ {[%clk 0:00:38]} 41. Kh1 {[%clk 0:00:50]}  Rc8 {[%clk 0:00:36]} 0-1


[Site "https://www.chess.com"]

[Event "Titled Tuesday Blitz July 4 Early 2023"]
[White "Sadykov, Ramil"]
[Black "Wartiovaara, Oliver"]
[WhiteFideId "24113590"]
[BlackFideId "513024"]
[WhiteElo "2618"]
[BlackElo "2373"]
[Result "0-1"]
[Round "2"]
[TimeControl "180+2"]
[Date "2023.07.04"]
[WhiteClock "0:00:00"]
[BlackClock "0:01:01"]
[Board "153"]

1. e4 {[%clk 0:02:52]}  c5 {[%clk 0:02:53]} 2. Nf3 {[%clk 0:02:52]}  e6 {[%clk 0:02:48]} 3. d4 {[%clk 0:02:48]}  cxd4 {[%clk 0:02:49]} 4. Nxd4 {[%clk 0:02:49]}  Nc6 {[%clk 0:02:43]} 5. Nc3 {[%clk 0:02:45]}  Bc5 {[%clk 0:02:42]} 6. Nb3 {[%clk 0:02:38]}  Bb6 {[%clk 0:02:41]} 7. Bd3 {[%clk 0:02:27]}  Nge7 {[%clk 0:02:40]} 8. O-O {[%clk 0:02:26]}  O-O {[%clk 0:02:39]} 9. Bf4 {[%clk 0:02:06]}  d5 {[%clk 0:02:38]} 10. Qe2 {[%clk 0:01:54]}  Ng6 {[%clk 0:02:34]} 11. Bg3 {[%clk 0:01:52]}  dxe4 {[%clk 0:02:23]} 12. Nxe4 {[%clk 0:01:48]}  f5 {[%clk 0:02:14]} 13. Nd6 {[%clk 0:01:24]}  f4 {[%clk 0:02:12]} 14. Nxc8 {[%clk 0:01:23]}  Rxc8 {[%clk 0:01:53]} 15. Qxe6+ {[%clk 0:01:18]}  Kh8 {[%clk 0:01:48]} 16. Bxg6 {[%clk 0:01:15]}  hxg6 {[%clk 0:01:48]} 17. Rad1 {[%clk 0:01:03]}  Qg5 {[%clk 0:01:41]} 18. Qh3+ {[%clk 0:00:48]}  Qh6 {[%clk 0:01:33]} 19. Bh4 {[%clk 0:00:41]}  Rf5 {[%clk 0:01:19]} 20. Qg4 {[%clk 0:00:19]}  Rcf8 {[%clk 0:01:15]} 21. g3 {[%clk 0:00:07]}  g5 {[%clk 0:01:12]} 22. Kg2 {[%clk 0:00:02]}  gxh4 {[%clk 0:01:09]} 23. Rd7 {[%clk 0:00:02]}  fxg3 {[%clk 0:01:06]} 24. hxg3 {[%clk 0:00:01]}  h3+ {[%clk 0:01:03]} 25. Kh1 {[%clk 0:00:00]}  Rxf2 {[%clk 0:01:01]} 0-1


[Site "https://www.chess.com"]

[Event "Titled Tuesday Blitz July 4 Early 2023"]
[White "Philippe, Guillaume"]
[Black "Atanasov, Anthony"]
[WhiteFideId "36048763"]
[BlackFideId "2623897"]
[WhiteElo "2372"]
[BlackElo "2615"]
[Result "1-0"]
[Round "2"]
[TimeControl "180+2"]
[Date "2023.07.04"]
[WhiteClock "0:01:17"]
[BlackClock "0:00:32"]
[Board "154"]

1. e4 {[%clk 0:03:00]}  e5 {[%clk 0:02:59]} 2. Nf3 {[%clk 0:03:01]}  Nf6 {[%clk 0:02:59]} 3. d4 {[%clk 0:03:00]}  Nxe4 {[%clk 0:02:59]} 4. dxe5 {[%clk 0:03:01]}  Bc5 {[%clk 0:02:59]} 5. Bc4 {[%clk 0:03:01]}  Nxf2 {[%clk 0:03:00]} 6. Bxf7+ {[%clk 0:02:59]}  Kxf7 {[%clk 0:03:01]} 7. Qd5+ {[%clk 0:02:59]}  Kg6 {[%clk 0:03:02]} 8. Qxc5 {[%clk 0:02:57]}  Nxh1 {[%clk 0:03:03]} 9. Nc3 {[%clk 0:02:57]}  h6 {[%clk 0:03:03]} 10. Qc4 {[%clk 0:02:56]}  Kh7 {[%clk 0:03:03]} 11. Qe4+ {[%clk 0:02:56]}  Kg8 {[%clk 0:03:04]} 12. Qd5+ {[%clk 0:02:56]}  Kh7 {[%clk 0:03:05]} 13. Ne4 {[%clk 0:02:50]}  Rf8 {[%clk 0:02:35]} 14. Neg5+ {[%clk 0:02:43]}  hxg5 {[%clk 0:02:33]} 15. Nxg5+ {[%clk 0:02:44]}  Kh8 {[%clk 0:01:59]} 16. Qe4 {[%clk 0:02:10]}  Qxg5 {[%clk 0:01:00]} 17. Bxg5 {[%clk 0:02:09]}  d5 {[%clk 0:00:55]} 18. exd6 {[%clk 0:01:32]}  Nf2 {[%clk 0:00:39]} 19. Qh4+ {[%clk 0:01:28]}  Kg8 {[%clk 0:00:38]} 20. Be7 {[%clk 0:01:18]}  Kf7 {[%clk 0:00:32]} 21. Qxf2+ {[%clk 0:01:17]} 1-0


[Site "https://www.chess.com"]

[Event "Titled Tuesday Blitz July 4 Early 2023"]
[White "Petrova, Irina"]
[Black "Tanaka, Taira Tyler"]
[WhiteFideId "14124122"]
[BlackFideId "7002351"]
[WhiteElo "2358"]
[BlackElo "2591"]
[Result "1/2-1/2"]
[Round "2"]
[TimeControl "180+2"]
[Date "2023.07.04"]
[WhiteClock "0:00:11"]
[BlackClock "0:00:32"]
[Board "161"]

1. e4 {[%clk 0:03:00]}  e5 {[%clk 0:03:00]} 2. Nf3 {[%clk 0:03:01]}  Nc6 {[%clk 0:02:59]} 3. Bc4 {[%clk 0:03:00]}  Bc5 {[%clk 0:02:59]} 4. d3 {[%clk 0:03:00]}  Nf6 {[%clk 0:02:58]} 5. a4 {[%clk 0:02:58]}  O-O {[%clk 0:02:57]} 6. Nc3 {[%clk 0:02:55]}  d6 {[%clk 0:02:56]} 7. Bg5 {[%clk 0:02:54]}  h6 {[%clk 0:02:54]} 8. Bh4 {[%clk 0:02:54]}  Bb4 {[%clk 0:02:43]} 9. O-O {[%clk 0:02:46]}  Bxc3 {[%clk 0:02:44]} 10. bxc3 {[%clk 0:02:46]}  Qe7 {[%clk 0:02:44]} 11. h3 {[%clk 0:02:33]}  Be6 {[%clk 0:02:44]} 12. Bb3 {[%clk 0:02:25]}  Bxb3 {[%clk 0:02:35]} 13. cxb3 {[%clk 0:02:26]}  Qe6 {[%clk 0:02:35]} 14. Bxf6 {[%clk 0:02:16]}  Qxf6 {[%clk 0:02:35]} 15. d4 {[%clk 0:02:17]}  Rfe8 {[%clk 0:02:34]} 16. Re1 {[%clk 0:02:17]}  Rad8 {[%clk 0:02:26]} 17. d5 {[%clk 0:02:17]}  Ne7 {[%clk 0:02:26]} 18. c4 {[%clk 0:02:16]}  Ng6 {[%clk 0:02:26]} 19. Nh2 {[%clk 0:02:15]}  Nf4 {[%clk 0:02:24]} 20. Qf3 {[%clk 0:02:13]}  Qg6 {[%clk 0:02:21]} 21. Qg4 {[%clk 0:01:55]}  Qxg4 {[%clk 0:02:13]} 22. hxg4 {[%clk 0:01:49]}  a5 {[%clk 0:02:07]} 23. Rad1 {[%clk 0:01:48]}  Rc8 {[%clk 0:01:52]} 24. g3 {[%clk 0:01:44]}  Ng6 {[%clk 0:01:53]} 25. Nf3 {[%clk 0:01:42]}  Nf8 {[%clk 0:01:51]} 26. g5 {[%clk 0:01:39]}  hxg5 {[%clk 0:01:49]} 27. Nxg5 {[%clk 0:01:40]}  Nd7 {[%clk 0:01:49]} 28. Kg2 {[%clk 0:01:18]}  Nc5 {[%clk 0:01:49]} 29. Rb1 {[%clk 0:01:15]}  b6 {[%clk 0:01:46]} 30. Rh1 {[%clk 0:01:14]}  f6 {[%clk 0:01:43]} 31. Nf3 {[%clk 0:01:06]}  Nxe4 {[%clk 0:01:43]} 32. Rh4 {[%clk 0:01:05]}  Nc5 {[%clk 0:01:41]} 33. g4 {[%clk 0:01:03]}  Kf7 {[%clk 0:01:40]} 34. Nd2 {[%clk 0:00:58]}  Rh8 {[%clk 0:01:38]} 35. Rbh1 {[%clk 0:00:58]}  Rxh4 {[%clk 0:01:34]} 36. Rxh4 {[%clk 0:00:59]}  Nd3 {[%clk 0:01:27]} 37. Kf3 {[%clk 0:00:54]}  Nc5 {[%clk 0:01:18]} 38. Rh1 {[%clk 0:00:33]}  Kg6 {[%clk 0:01:17]} 39. Rh5 {[%clk 0:00:31]}  Rf8 {[%clk 0:01:16]} 40. Ke3 {[%clk 0:00:20]}  f5 {[%clk 0:01:15]} 41. f3 {[%clk 0:00:21]}  fxg4 {[%clk 0:01:12]} 42. fxg4 {[%clk 0:00:21]}  Rf4 {[%clk 0:01:12]} 43. Rh8 {[%clk 0:00:22]}  Rxg4 {[%clk 0:01:05]} 44. Rc8 {[%clk 0:00:22]}  Nxb3 {[%clk 0:01:00]} 45. Nxb3 {[%clk 0:00:22]}  Rg3+ {[%clk 0:01:01]} 46. Ke4 {[%clk 0:00:21]}  Rxb3 {[%clk 0:01:02]} 47. Rxc7 {[%clk 0:00:20]}  Rb4 {[%clk 0:01:00]} 48. Rc6 {[%clk 0:00:20]}  Kf7 {[%clk 0:01:00]} 49. Rxd6 {[%clk 0:00:19]}  Rxc4+ {[%clk 0:00:59]} 50. Kxe5 {[%clk 0:00:19]}  Rb4 {[%clk 0:00:53]} 51. Rd7+ {[%clk 0:00:20]}  Kg6 {[%clk 0:00:52]} 52. Rb7 {[%clk 0:00:20]}  Rb1 {[%clk 0:00:49]} 53. d6 {[%clk 0:00:20]}  Re1+ {[%clk 0:00:47]} 54. Kd5 {[%clk 0:00:20]}  Kf6 {[%clk 0:00:48]} 55. Rxb6 {[%clk 0:00:19]}  Rd1+ {[%clk 0:00:46]} 56. Kc6 {[%clk 0:00:20]}  Ke6 {[%clk 0:00:47]} 57. Kc7 {[%clk 0:00:19]}  g5 {[%clk 0:00:42]} 58. d7+ {[%clk 0:00:18]}  Ke7 {[%clk 0:00:42]} 59. Rb5 {[%clk 0:00:17]}  Rxd7+ {[%clk 0:00:42]} 60. Kc6 {[%clk 0:00:17]}  g4 {[%clk 0:00:36]} 61. Rxa5 {[%clk 0:00:14]}  Rd6+ {[%clk 0:00:33]} 62. Kc7 {[%clk 0:00:13]}  Rg6 {[%clk 0:00:34]} 63. Re5+ {[%clk 0:00:12]}  Kf6 {[%clk 0:00:33]} 64. Re1 {[%clk 0:00:12]}  Kf5 {[%clk 0:00:31]} 65. a5 {[%clk 0:00:12]}  Ra6 {[%clk 0:00:30]} 66. Ra1 {[%clk 0:00:11]}  g3 {[%clk 0:00:30]} 67. Kb7 {[%clk 0:00:11]}  Rh6 {[%clk 0:00:28]} 68. a6 {[%clk 0:00:11]}  Rh7+ {[%clk 0:00:29]} 69. Kb8 {[%clk 0:00:10]}  Kf4 {[%clk 0:00:28]} 70. a7 {[%clk 0:00:10]}  Rh8+ {[%clk 0:00:28]} 71. Kb7 {[%clk 0:00:10]}  Rh7+ {[%clk 0:00:29]} 72. Kb8 {[%clk 0:00:10]}  Rh8+ {[%clk 0:00:30]} 73. Kb7 {[%clk 0:00:11]}  Kf3 {[%clk 0:00:30]} 74. a8=Q {[%clk 0:00:10]}  Rxa8 {[%clk 0:00:31]} 75. Kxa8 {[%clk 0:00:11]}  g2 {[%clk 0:00:31]} 76. Rb1 {[%clk 0:00:11]}  Kg3 {[%clk 0:00:31]} 77. Rg1 {[%clk 0:00:11]}  Kh2 {[%clk 0:00:31]} 78. Rxg2+ {[%clk 0:00:11]}  Kxg2 {[%clk 0:00:32]} 1/2-1/2


[Site "https://www.chess.com"]